fUST/lending_fUST_20250701
["ID","MTS","AMOUNT","RATE_DAILY","PERIOD"]
[368818191,1751371845287,-558.37237296,0.00017933,2]
[368818193,1751371845297,-460.0,0.00017933,2]
[368818195,1751371845306,-460.0,0.00017933,2]
[368818197,1751371845315,-369.14,0.00017933,2]
[368818199,1751371845325,-466.18,0.00017933,2]
[368818200,1751371845334,-460.0,0.00017933,2]
[368818202,1751371845343,-460.0,0.00017933,2]
[368818204,1751371845352,-460.0,0.00017933,2]
[368818207,1751371845362,-468.06408066,0.00017933,2]
[368818209,1751371845371,-460.0,0.00017933,2]
[368818211,1751371845380,-460.0,0.00017933,2]
[368818213,1751371845389,-460.0,0.00017933,2]
[368818215,1751371845399,-460.0,0.00017933,2]
[368818217,1751371845408,-460.0,0.00017933,2]
[368818219,1751371845418,-460.0,0.00017933,2]
[368818221,1751371845427,-460.0,0.00017933,2]
[368818223,1751371845436,-460.0,0.00017933,2]
[368818225,1751371845445,-460.0,0.00017933,2]
[368818227,1751371845455,-460.0,0.00017933,2]
[368818229,1751371845465,-460.0,0.00017933,2]
[368818231,1751371845476,-2091.67,0.00017933,2]
[368818233,1751371845485,-460.0,0.00017933,2]
[368818235,1751371845494,-460.0,0.00017933,2]
[368818237,1751371845504,-500.0,0.00017934,2]
[368818239,1751371845513,-557.27,0.00017934,2]
[368818241,1751371845522,-460.0,0.00017934,2]
[368818243,1751371845532,-850.85,0.00017934,2]
[368818245,1751371845541,-460.0,0.00017934,2]
[368818247,1751371845552,-579.3,0.00017934,2]
[368818249,1751371845561,-460.0,0.00017934,2]
[368818251,1751371845571,-477.22,0.00017934,2]
[368818253,1751371845580,-1321.17,0.00017934,2]
[368818255,1751371845589,-460.0,0.00017934,2]
[368818257,1751371845598,-460.0,0.00017934,2]
[368818259,1751371845608,-917.67,0.00017934,2]
[368818261,1751371845618,-739.29,0.00017934,2]
[368818263,1751371845626,-460.0,0.00017934,2]
[368818265,1751371845636,-3819.64,0.00017934,2]
[368818267,1751371845645,-460.0,0.00017934,2]
[368818269,1751371845654,-151.0,0.00018,2]
[368818271,1751371845664,-800.0,0.00018013,2]
[368818273,1751371845673,-500.0,0.00018021,2]
[368818275,1751371845682,-574.56198185,0.00018021,2]
[368818276,1751371845692,-1000.0,0.00018021,2]
[368818279,1751371845702,-648.06973744,0.00018021,2]
[368818281,1751371845711,-460.0,0.00018032,2]
[368818283,1751371845722,-460.0,0.00018032,2]
[368818284,1751371845732,-460.0,0.00018032,2]
[368818286,1751371845742,-460.0,0.00018032,2]
[368818288,1751371845752,-460.0,0.00018032,2]
[368818290,1751371845763,-460.0,0.00018032,2]
[368818292,1751371845775,-460.0,0.00018032,2]
[368818294,1751371845787,-460.0,0.00018032,2]
[368818296,1751371845801,-604.7,0.00018032,2]
[368818298,1751371845810,-460.0,0.00018032,2]
[368818300,1751371845820,-460.0,0.00018032,2]
[368818302,1751371845832,-460.0,0.00018032,2]
[368818304,1751371845842,-460.0,0.00018032,2]
[368818306,1751371845852,-536.04887664,0.00018032,2]
[368818308,1751371845861,-460.0,0.00018032,2]
[368818310,1751371845870,-460.0,0.00018032,2]
[368818312,1751371845879,-460.0,0.00018032,2]
[368818314,1751371845889,-460.0,0.00018032,2]
[368818316,1751371845898,-451.1034245,0.00018032,2]
[368818318,1751371845907,-460.0,0.00018032,2]
[368818320,1751371845915,-765.78,0.00018032,2]
[368818322,1751371845925,-460.0,0.00018032,2]
[368818323,1751371845934,-435.68123674,0.00018032,2]
[368818324,1751371845943,-460.0,0.00018033,2]
[368818325,1751371845953,-460.0,0.00018033,2]
[368818326,1751371845963,-460.0,0.00018033,2]
[368818327,1751371845973,-460.0,0.00018033,2]
[368818328,1751371845983,-460.0,0.00018033,2]
[368818329,1751371845993,-460.0,0.00018033,2]
[368818330,1751371846002,-460.0,0.00018033,2]
[368818332,1751371846011,-460.0,0.00018033,2]
[368818334,1751371846021,-460.0,0.00018033,2]
[368818336,1751371846031,-464.5305246,0.00018033,2]
[368818338,1751371846040,-460.0,0.00018033,2]
[368818340,1751371846050,-460.0,0.00018033,2]
[368818342,1751371846059,-460.0,0.00018033,2]
[368818344,1751371846068,-460.0,0.00018033,2]
[368818346,1751371846078,-460.0,0.00018033,2]
[368818348,1751371846087,-460.0,0.00018033,2]
[368818350,1751371846098,-460.0,0.00018033,2]
[368818352,1751371846111,-460.0,0.00018033,2]
[368818354,1751371846120,-2442.3964401,0.00018052,2]
[368818356,1751371846130,-151.0,0.000181,2]
[368818358,1751371846139,-151.0,0.000182,2]
[368818360,1751371846151,-151.0,0.000182,2]
[368818363,1751371846161,-470.03970522,0.00018205,2]
[368818365,1751371846171,-460.0,0.00018205,2]
[368818366,1751371846181,-460.0,0.00018205,2]
[368818368,1751371846191,-460.0,0.00018205,2]
[368818371,1751371846201,-1245.59,0.00018205,2]
[368818373,1751371846210,-2317.87,0.00018205,2]
[368818374,1751371846219,-468.8,0.00018205,2]
[368818377,1751371846229,-1199.56,0.00018205,2]
[368818379,1751371846238,-460.0,0.00018205,2]
[368818381,1751371846247,-460.0,0.00018206,2]
[368818383,1751371846256,-460.0,0.00018206,2]
[368818385,1751371846266,-460.0,0.00018206,2]
[368818387,1751371846275,-879.28,0.00018206,2]
[368818389,1751371846284,-902.03,0.00018206,2]
[368818391,1751371846293,-1676.97,0.00018206,2]
[368818393,1751371846303,-460.0,0.00018206,2]
[368818395,1751371846312,-790.99,0.00018206,2]
[368818397,1751371846321,-238.05,0.00018206,2]
[368818399,1751371846330,-460.0,0.00018206,2]
[368818401,1751371846339,-460.0,0.00018206,2]
[368818403,1751371846349,-460.0,0.00018206,2]
[368818405,1751371846359,-460.0,0.00018206,2]
[368818407,1751371846369,-1102.59,0.00018206,2]
[368818409,1751371846380,-460.0,0.00018206,2]
[368818411,1751371846388,-460.0,0.00018206,2]
[368818422,1751371846398,-460.0,0.00018206,2]
[368818425,1751371846506,-460.0,0.00018206,2]
[368818427,1751371846516,-460.0,0.00018206,2]
[368818429,1751371846527,-524.97,0.00018206,2]
[368818431,1751371846536,-460.0,0.00018207,2]
[368818433,1751371846546,-460.0,0.00018207,2]
[368818435,1751371846555,-595.29846076,0.00018207,2]
[368818437,1751371846565,-460.0,0.00018207,2]
[368818439,1751371846574,-460.0,0.00018207,2]
[368818441,1751371846584,-460.0,0.00018207,2]
[368818443,1751371846593,-460.0,0.00018207,2]
[368818445,1751371846603,-460.0,0.00018207,2]
[368818447,1751371846613,-460.0,0.00018207,2]
[368818449,1751371846622,-460.0,0.00018207,2]
[368818451,1751371846632,-460.0,0.00018207,2]
[368818453,1751371846641,-460.0,0.00018207,2]
[368818455,1751371846650,-460.0,0.00018207,2]
[368818457,1751371846659,-460.0,0.00018207,2]
[368818459,1751371846669,-460.0,0.00018207,2]
[368818461,1751371846678,-460.0,0.00018207,2]
[368818463,1751371846687,-460.0,0.00018207,2]
[368818465,1751371846697,-460.0,0.00018207,2]
[368818467,1751371846706,-460.0,0.00018207,2]
[368818469,1751371846715,-460.0,0.00018207,2]
[368818471,1751371846725,-460.0,0.00018207,2]
[368818473,1751371846735,-460.0,0.00018207,2]
[368818475,1751371846744,-460.0,0.00018207,2]
[368818477,1751371846753,-2319.81,0.00018207,2]
[368818479,1751371846763,-460.0,0.00018207,2]
[368818481,1751371846772,-460.0,0.00018207,2]
[368818483,1751371846781,-460.0,0.00018207,2]
[368818485,1751371846790,-466.18,0.00018207,2]
[368818487,1751371846799,-460.0,0.00018207,2]
[368818489,1751371846808,-460.0,0.00018207,2]
[368818491,1751371846821,-460.0,0.00018207,2]
[368818493,1751371846835,-460.0,0.00018207,2]
[368818495,1751371846845,-460.0,0.00018207,2]
[368818497,1751371846857,-460.0,0.00018207,2]
[368818500,1751371846867,-460.0,0.00018207,2]
[368818501,1751371846877,-460.0,0.00018207,2]
[368818504,1751371846886,-460.0,0.00018207,2]
[368818505,1751371846895,-460.0,0.00018207,2]
[368818508,1751371846905,-460.0,0.00018207,2]
[368818510,1751371846914,-460.0,0.00018207,2]
[368818512,1751371846923,-460.0,0.00018207,2]
[368818514,1751371846932,-2091.67,0.00018207,2]
[368818516,1751371846941,-460.0,0.00018207,2]
[368818518,1751371846951,-460.0,0.00018207,2]
[368818520,1751371846960,-557.27,0.00018208,2]
[368818522,1751371846970,-460.0,0.00018208,2]
[368818524,1751371846979,-850.85,0.00018208,2]
[368818526,1751371846988,-579.3,0.00018208,2]
[368818528,1751371846998,-460.0,0.00018208,2]
[368818529,1751371847006,-1321.17,0.00018208,2]
[368818532,1751371847016,-460.0,0.00018208,2]
[368818534,1751371847026,-460.0,0.00018208,2]
[368818536,1751371847035,-917.67,0.00018208,2]
[368818538,1751371847044,-739.29,0.00018208,2]
[368818540,1751371847054,-3819.64,0.00018208,2]
[368818542,1751371847063,-460.0,0.00018208,2]
[368818544,1751371847073,-501.49178889,0.00018221,2]
[368818546,1751371847083,-983.01698268,0.00018221,2]
[368818548,1751371847092,-1000.0,0.00018221,2]
[368818550,1751371847104,-500.0,0.00018221,2]
[368818552,1751371847114,-500.0,0.00018221,2]
[368818554,1751371847124,-500.0,0.00018221,2]
[368818556,1751371847132,-1000.0,0.00018221,2]
[368818558,1751371847143,-1000.0,0.00018221,2]
[368818560,1751371847152,-2442.3964401,0.00018254,2]
[368818562,1751371847162,-151.0,0.000183,2]
[368818564,1751371847172,-151.0,0.000183,2]
[368818565,1751371847184,-460.0,0.00018306,2]
[368818567,1751371847194,-460.0,0.00018306,2]
[368818569,1751371847203,-460.0,0.00018306,2]
[368818571,1751371847213,-460.0,0.00018306,2]
[368818573,1751371847222,-460.0,0.00018306,2]
[368818575,1751371847232,-460.0,0.00018306,2]
[368818578,1751371847241,-460.0,0.00018306,2]
[368818580,1751371847251,-460.0,0.00018306,2]
[368818582,1751371847260,-460.0,0.00018306,2]
[368818584,1751371847270,-563.44,0.00018306,2]
[368818586,1751371847279,-460.0,0.00018306,2]
[368818588,1751371847289,-460.0,0.00018306,2]
[368818590,1751371847298,-460.0,0.00018306,2]
[368818592,1751371847307,-460.0,0.00018306,2]
[368818594,1751371847316,-331.0421433,0.00018306,2]
[368818596,1751371847326,-460.0,0.00018306,2]
[368818598,1751371847335,-460.0,0.00018306,2]
[368818600,1751371847344,-765.78,0.00018306,2]
[368818602,1751371847354,-460.0,0.00018307,2]
[368818604,1751371847363,-460.0,0.00018307,2]
[368818606,1751371847373,-460.0,0.00018307,2]
[368818608,1751371847382,-460.0,0.00018307,2]
[368818610,1751371847391,-283.62728344,0.00018307,2]
[368818612,1751371847401,-537.01028422,0.00018307,2]
[368818614,1751371847411,-460.0,0.00018307,2]
[368818616,1751371847421,-460.0,0.00018307,2]
[368818618,1751371847430,-460.0,0.00018307,2]
[368818620,1751371847439,-499.64,0.00018307,2]
[368818622,1751371847448,-460.0,0.00018307,2]
[368818624,1751371847457,-460.0,0.00018307,2]
[368818626,1751371847466,-396.35133183,0.00018321,2]
[368818628,1751371847476,-320.333902,0.00018321,2]
[368818630,1751371847485,-1000.0,0.00018321,2]
[368818632,1751371847494,-3327.91784949,0.00018323,2]
[368818634,1751371847504,-460.0,0.00018479,2]
[368818636,1751371847513,-460.0,0.00018479,2]
[368818638,1751371847522,-460.0,0.00018479,2]
[368818640,1751371847532,-1245.59,0.00018479,2]
[368818642,1751371847541,-2317.87,0.00018479,2]
[368818644,1751371847550,-468.8,0.00018479,2]
[368818646,1751371847559,-1199.56,0.00018479,2]
[368818647,1751371847569,-460.0,0.0001848,2]
[368818649,1751371847580,-168.74373069,0.0001848,2]
[368818651,1751371847589,-460.0,0.0001848,2]
[368818653,1751371847599,-460.0,0.0001848,2]
[368818655,1751371847609,-879.28,0.0001848,2]
[368818657,1751371847619,-902.03,0.0001848,2]
[368818659,1751371847629,-1676.97,0.0001848,2]
[368818662,1751371847639,-460.0,0.0001848,2]
[368818664,1751371847648,-790.99,0.0001848,2]
[368818665,1751371847657,-460.0,0.0001848,2]
[368818667,1751371847667,-460.0,0.0001848,2]
[368818670,1751371847676,-460.0,0.0001848,2]
[368818672,1751371847686,-460.0,0.0001848,2]
[368818674,1751371847695,-1102.59,0.0001848,2]
[368818675,1751371847704,-460.0,0.0001848,2]
[368818678,1751371847713,-460.0,0.0001848,2]
[368818680,1751371847723,-460.0,0.0001848,2]
[368818682,1751371847733,-460.0,0.0001848,2]
[368818684,1751371847743,-524.97,0.0001848,2]
[368818686,1751371847752,-460.0,0.00018481,2]
[368818688,1751371847762,-460.0,0.00018481,2]
[368818690,1751371847771,-460.0,0.00018481,2]
[368818692,1751371847783,-335.68,0.00018481,2]
[368818694,1751371847792,-460.0,0.00018481,2]
[368818696,1751371847802,-460.0,0.00018481,2]
[368818698,1751371847811,-460.0,0.00018481,2]
[368818700,1751371847821,-460.0,0.00018481,2]
[368818702,1751371847831,-460.0,0.00018481,2]
[368818704,1751371847840,-296.32089642,0.00018481,2]
[368818706,1751371847850,-460.0,0.00018481,2]
[368818708,1751371847860,-460.0,0.00018481,2]
[368818710,1751371847869,-460.0,0.00018481,2]
[368818712,1751371847879,-460.0,0.00018481,2]
[368818714,1751371847888,-460.0,0.00018481,2]
[368818716,1751371847897,-460.0,0.00018481,2]
[368818718,1751371847906,-460.0,0.00018481,2]
[368818720,1751371847915,-460.0,0.00018481,2]
[368818722,1751371847924,-460.0,0.00018481,2]
[368818724,1751371847934,-460.0,0.00018481,2]
[368818726,1751371847943,-2319.81,0.00018481,2]
[368818728,1751371847953,-460.0,0.00018481,2]
[368818730,1751371847962,-460.0,0.00018481,2]
[368818732,1751371847972,-460.0,0.00018481,2]
[368818734,1751371847981,-466.18,0.00018481,2]
[368818736,1751371847990,-460.0,0.00018481,2]
[368818738,1751371847999,-460.0,0.00018481,2]
[368818740,1751371848009,-460.0,0.00018481,2]
[368818742,1751371848019,-460.0,0.00018481,2]
[368818744,1751371848029,-460.0,0.00018481,2]
[368818746,1751371848039,-460.0,0.00018481,2]
[368818748,1751371848049,-460.0,0.00018481,2]
[368818750,1751371848059,-460.0,0.00018481,2]
[368818752,1751371848069,-460.0,0.00018481,2]
[368818754,1751371848078,-460.0,0.00018481,2]
[368818756,1751371848088,-2091.67,0.00018481,2]
[368818759,1751371848099,-460.0,0.00018481,2]
[368818761,1751371848112,-460.0,0.00018481,2]
[368818762,1751371848122,-557.27,0.00018482,2]
[368818765,1751371848131,-460.0,0.00018482,2]
[368818766,1751371848140,-850.85,0.00018482,2]
[368818769,1751371848151,-579.3,0.00018482,2]
[368818771,1751371848160,-1321.17,0.00018482,2]
[368818773,1751371848170,-460.0,0.00018482,2]
[368818775,1751371848179,-460.0,0.00018482,2]
[368818777,1751371848189,-917.67,0.00018482,2]
[368818779,1751371848199,-739.29,0.00018482,2]
[368818781,1751371848209,-3819.64,0.00018482,2]
[368818782,1751371848218,-151.0,0.000185,2]
[368818784,1751371848228,-210.2657617,0.00018565,2]
[368818787,1751371848237,-500.0,0.00018568,2]
[368818788,1751371848247,-460.0,0.0001858,2]
[368818791,1751371848257,-460.0,0.0001858,2]
[368818793,1751371848267,-460.0,0.0001858,2]
[368818795,1751371848276,-460.0,0.0001858,2]
[368818797,1751371848286,-460.0,0.0001858,2]
[368818799,1751371848296,-460.0,0.0001858,2]
[368818801,1751371848306,-460.0,0.0001858,2]
[368818803,1751371848315,-460.0,0.0001858,2]
[368818805,1751371848324,-460.0,0.0001858,2]
[368818807,1751371848334,-460.0,0.0001858,2]
[368818809,1751371848343,-460.0,0.0001858,2]
[368818811,1751371848353,-460.0,0.0001858,2]
[368818813,1751371848362,-460.0,0.0001858,2]
[368818815,1751371848371,-765.78,0.0001858,2]
[368818817,1751371848381,-460.0,0.00018581,2]
[368818819,1751371848391,-460.0,0.00018581,2]
[368818821,1751371848400,-460.0,0.00018581,2]
[368818822,1751371848409,-460.0,0.00018581,2]
[368818824,1751371848419,-276.76,0.00018581,2]
[368818826,1751371848428,-460.0,0.00018581,2]
[368818828,1751371848437,-460.0,0.00018581,2]
[368818831,1751371848447,-541.5,0.00018581,2]
[368818833,1751371848456,-151.0,0.000186,2]
[368818835,1751371848465,-2442.3964401,0.00018601,2]
[368818836,1751371848475,-2273.08,0.00018747,3]
[368818838,1751371848484,-1136.54,0.00018747,3]
[368818840,1751371848495,-568.26,0.00018747,3]
[368818843,1751371848506,-460.0,0.00018753,2]
[368818845,1751371848515,-460.0,0.00018753,2]
[368818847,1751371848525,-352.54,0.00018753,2]
[368818849,1751371848534,-1245.59,0.00018753,2]
[368818851,1751371848543,-2317.87,0.00018753,2]
[368818852,1751371848553,-468.8,0.00018753,2]
[368818855,1751371848562,-1199.56,0.00018753,2]
[368818857,1751371848572,-460.0,0.00018754,2]
[368818858,1751371848582,-460.0,0.00018754,2]
[368818861,1751371848591,-460.0,0.00018754,2]
[368818863,1751371848602,-879.28,0.00018754,2]
[368818865,1751371848611,-902.03,0.00018754,2]
[368818867,1751371848620,-1676.97,0.00018754,2]
[368818869,1751371848630,-460.0,0.00018754,2]
[368818871,1751371848639,-790.99,0.00018754,2]
[368818873,1751371848648,-460.0,0.00018754,2]
[368818875,1751371848658,-460.0,0.00018754,2]
[368818876,1751371848667,-460.0,0.00018754,2]
[368818879,1751371848677,-460.0,0.00018754,2]
[368818880,1751371848686,-1102.59,0.00018754,2]
[368818883,1751371848696,-460.0,0.00018754,2]
[368818885,1751371848706,-460.0,0.00018754,2]
[368818887,1751371848715,-460.0,0.00018754,2]
[368818889,1751371848725,-460.0,0.00018754,2]
[368818891,1751371848734,-524.97,0.00018754,2]
[368818893,1751371848743,-460.0,0.00018755,2]
[368818895,1751371848753,-460.0,0.00018755,2]
[368818897,1751371848763,-281.01219582,0.00018755,2]
[368818899,1751371848772,-460.0,0.00018755,2]
[368818901,1751371848782,-298.37,0.00018755,2]
[368818903,1751371848791,-460.0,0.00018755,2]
[368818904,1751371848799,-460.0,0.00018755,2]
[368818916,1751371848904,-460.0,0.00018755,2]
[368818918,1751371848914,-460.0,0.00018755,2]
[368818920,1751371848924,-460.0,0.00018755,2]
[368818922,1751371848934,-562.68,0.00018755,2]
[368818924,1751371848944,-460.0,0.00018755,2]
[368818926,1751371848953,-460.0,0.00018755,2]
[368818928,1751371848963,-460.0,0.00018755,2]
[368818930,1751371848972,-460.0,0.00018755,2]
[368818932,1751371848982,-2319.81,0.00018755,2]
[368818934,1751371848992,-460.0,0.00018755,2]
[368818936,1751371849001,-460.0,0.00018755,2]
[368818938,1751371849011,-460.0,0.00018755,2]
[368818940,1751371849020,-466.18,0.00018755,2]
[368818942,1751371849030,-460.0,0.00018755,2]
[368818944,1751371849039,-389.32,0.00018755,2]
[368818946,1751371849049,-460.0,0.00018755,2]
[368818948,1751371849058,-460.0,0.00018755,2]
[368818950,1751371849069,-460.0,0.00018755,2]
[368818952,1751371849079,-460.0,0.00018755,2]
[368818954,1751371849088,-460.0,0.00018755,2]
[368818956,1751371849098,-368.85962986,0.00018755,2]
[368818958,1751371849111,-2091.67,0.00018755,2]
[368818960,1751371849122,-460.0,0.00018755,2]
[368818962,1751371849131,-557.27,0.00018756,2]
[368818964,1751371849142,-460.0,0.00018756,2]
[368818966,1751371849151,-850.85,0.00018756,2]
[368818969,1751371849161,-579.3,0.00018756,2]
[368818971,1751371849171,-1321.17,0.00018756,2]
[368818973,1751371849182,-460.0,0.00018756,2]
[368818975,1751371849192,-460.0,0.00018756,2]
[368818977,1751371849201,-917.67,0.00018756,2]
[368818979,1751371849211,-739.29,0.00018756,2]
[368818981,1751371849220,-3819.64,0.00018756,2]
[368818983,1751371849230,-3327.91784949,0.00018798,2]
[368818985,1751371849240,-151.0,0.000188,2]
[368818987,1751371849249,-460.0,0.00018854,2]
[368818989,1751371849259,-460.0,0.00018854,2]
[368818991,1751371849268,-460.0,0.00018854,2]
[368818993,1751371849277,-460.0,0.00018854,2]
[368818995,1751371849287,-460.0,0.00018854,2]
[368818997,1751371849296,-216.53,0.00018854,2]
[368818999,1751371849307,-460.0,0.00018854,2]
[368819001,1751371849316,-460.0,0.00018854,2]
[368819004,1751371849325,-460.0,0.00018854,2]
[368819006,1751371849335,-460.0,0.00018854,2]
[368819008,1751371849343,-765.78,0.00018854,2]
[368819010,1751371849354,-460.0,0.00018855,2]
[368819012,1751371849363,-460.0,0.00018855,2]
[368819014,1751371849372,-460.0,0.00018855,2]
[368819016,1751371849381,-460.0,0.00018855,2]
[368819018,1751371849391,-460.0,0.00018855,2]
[368819020,1751371849400,-242.03079629,0.00018879,2]
[368819022,1751371849409,-1461.50571653,0.000189,2]
[368819024,1751371849418,-2442.3964401,0.00018901,2]
[368819026,1751371849428,-420.0,0.00018978,2]
[368819028,1751371849437,-338.74144398,0.00019027,2]
[368819030,1751371849446,-460.0,0.00019027,2]
[368819032,1751371849455,-1245.59,0.00019027,2]
[368819034,1751371849465,-2317.87,0.00019027,2]
[368819036,1751371849474,-468.8,0.00019027,2]
[368819038,1751371849483,-1199.56,0.00019027,2]
[368819040,1751371849493,-460.0,0.00019028,2]
[368819042,1751371849502,-460.0,0.00019028,2]
[368819044,1751371849511,-460.0,0.00019028,2]
[368819045,1751371849521,-879.28,0.00019028,2]
[368819048,1751371849532,-902.03,0.00019028,2]
[368819049,1751371849541,-1676.97,0.00019028,2]
[368819051,1751371849551,-460.0,0.00019028,2]
[368819054,1751371849561,-790.99,0.00019028,2]
[368819055,1751371849571,-460.0,0.00019028,2]
[368819057,1751371849580,-460.0,0.00019028,2]
[368819059,1751371849590,-460.0,0.00019028,2]
[368819061,1751371849600,-460.0,0.00019028,2]
[368819063,1751371849609,-1102.59,0.00019028,2]
[368819065,1751371849619,-460.0,0.00019028,2]
[368819067,1751371849629,-460.0,0.00019028,2]
[368819069,1751371849638,-460.0,0.00019028,2]
[368819071,1751371849648,-460.0,0.00019028,2]
[368819073,1751371849657,-524.97,0.00019028,2]
[368819075,1751371849666,-418.5216409,0.00019029,2]
[368819077,1751371849676,-460.0,0.00019029,2]
[368819079,1751371849685,-460.0,0.00019029,2]
[368819081,1751371849695,-460.0,0.00019029,2]
[368819083,1751371849704,-460.0,0.00019029,2]
[368819085,1751371849714,-460.0,0.00019029,2]
[368819087,1751371849723,-460.0,0.00019029,2]
[368819089,1751371849732,-460.0,0.00019029,2]
[368819091,1751371849742,-2319.81,0.00019029,2]
[368819094,1751371849751,-460.0,0.00019029,2]
[368819095,1751371849761,-460.0,0.00019029,2]
[368819098,1751371849771,-460.0,0.00019029,2]
[368819099,1751371849780,-466.18,0.00019029,2]
[368819102,1751371849790,-460.0,0.00019029,2]
[368819103,1751371849799,-460.0,0.00019029,2]
[368819106,1751371849808,-460.0,0.00019029,2]
[368819107,1751371849818,-460.0,0.00019029,2]
[368819110,1751371849827,-460.0,0.00019029,2]
[368819112,1751371849836,-460.0,0.00019029,2]
[368819114,1751371849846,-2091.67,0.00019029,2]
[368819116,1751371849855,-460.0,0.00019029,2]
[368819118,1751371849866,-557.27,0.0001903,2]
[368819120,1751371849875,-460.0,0.0001903,2]
[368819122,1751371849884,-850.85,0.0001903,2]
[368819124,1751371849894,-579.3,0.0001903,2]
[368819125,1751371849903,-1321.17,0.0001903,2]
[368819127,1751371849912,-460.0,0.0001903,2]
[368819129,1751371849921,-460.0,0.0001903,2]
[368819131,1751371849930,-917.67,0.0001903,2]
[368819133,1751371849940,-739.29,0.0001903,2]
[368819135,1751371849949,-3819.64,0.0001903,2]
[368819137,1751371849958,-213.87551669,0.0001906,2]
[368819139,1751371849967,-160.0,0.0001906,2]
[368819141,1751371849977,-160.0,0.0001906,2]
[368819143,1751371849987,-160.0,0.0001906,2]
[368819145,1751371849996,-160.0,0.0001906,2]
[368819147,1751371850005,-160.0,0.0001906,2]
[368819149,1751371850014,-215.01728679,0.0001906,2]
[368819151,1751371850024,-847.53272281,0.0001906,2]
[368819153,1751371850033,-230.32585361,0.0001906,2]
[368819155,1751371850043,-837.20943635,0.0001906,2]
[368819157,1751371850052,-160.0,0.0001906,2]
[368819159,1751371850061,-12571.40790328,0.0001906,2]
[368819161,1751371850070,-160.0,0.0001906,2]
[368819163,1751371850079,-160.0,0.0001906,2]
[368819164,1751371850089,-160.0,0.0001906,2]
[368819166,1751371850098,-2442.3964401,0.00019065,2]
[368819168,1751371850110,-1680.0,0.00019071,2]
[368819170,1751371850120,-800.0,0.00019109,2]
[368819172,1751371850129,-460.0,0.00019128,2]
[368819174,1751371850138,-460.0,0.00019128,2]
[368819176,1751371850149,-460.0,0.00019128,2]
[368819178,1751371850158,-154.68,0.00019128,2]
[368819180,1751371850167,-507.78,0.00019128,2]
[368819182,1751371850178,-460.0,0.00019128,2]
[368819184,1751371850187,-281.63982368,0.00019128,2]
[368819186,1751371850196,-460.0,0.00019128,2]
[368819188,1751371850205,-166.96174028,0.00019128,2]
[368819190,1751371850215,-765.78,0.00019128,2]
[368819192,1751371850224,-460.0,0.00019129,2]
[368819194,1751371850233,-460.0,0.00019129,2]
[368819196,1751371850243,-170.94,0.00019129,2]
[368819198,1751371850252,-153.15932331,0.00019129,2]
[368819200,1751371850262,-460.0,0.00019129,2]
[368819202,1751371850271,-258.61216817,0.00019178,2]